[Event "EYTCC Girls U18 2022"]
[Site "Thessaloniki"]
[Date "2022.07.14"]
[Round "3.6"]
[White "Juhasz, Judit"]
[Black "Werner, Rosalie"]
[Result "1/2-1/2"]
[ECO "B33"]
[WhiteElo "2037"]
[BlackElo "1783"]
[Annotator "ChessBase"]
[PlyCount "95"]
[EventDate "2022.07.12"]
[EventType "team-tourn"]
[EventCountry "GRE"]
[SourceTitle "playchess.com"]
[Source "ChessBase"]
[SourceQuality "1"]
[WhiteTeam "Hungary"]
[BlackTeam "Germany"]
[WhiteTeamCountry "HUN"]
[BlackTeamCountry "GER"]
[TimeControl "40/5400+30:1800+30"]

1. e4 {[%emt 0:00:03]} c5 {[%emt 0:00:07]} 2. Nf3 {[%emt 0:00:05]} Nc6 {[%emt 0:00:07]} 3. d4 {[%emt 0:00:04]} cxd4 {[%emt 0:00:04]} 4. Nxd4 {[%emt 0:00:04]} Nf6 {[%emt 0:00:07]} 5. Nc3 {[%emt 0:00:06]} e5 {[%emt 0:00:04]} 6. Ndb5 {[%emt 0:00:04]} d6 {[%emt 0:00:06]} 7. Bg5 a6 {[%emt 0:00:10]} 8. Na3 {[%emt 0:00:08]} b5 {[%emt 0:00:10]} 9. Nd5 {[%emt 0:00:04]} Be7 {[%emt 0:00:06]} 10. Bxf6 {[%emt 0:00:05]} Bxf6 {[%emt 0:00:07]} 11. c3 {[%emt 0:00:14]} Ne7 {[%emt 0:00:11]} 12. Nc2 {[%emt 0:02:06]} Nxd5 {[%emt 0:00:30]} 13. Qxd5 {[%emt 0:01:31]} Rb8 {[%emt 0:00:30]} 14. Nb4 {[%emt 0:01:16]} Rb6 {[%emt 0:01:34]} 15. a4 {[%emt 0:03:18]} Be6 {[%emt 0:10:03]} 16. Qd1 O-O 17. a5 {[%emt 0:09:16]} Rb7 {[%emt 0:09:02]} 18. Nxa6 {[%emt 0:04:58]} Ra7 {[%emt 0:01:21]} 19. Bxb5 {[%emt 0:03:53]} Qa8 {[%emt 0:02:01]} 20. Qe2 {[%emt 0:00:55]} Be7 {[%emt 0:19:44]} 21. O-O {[%emt 0:01:56]} d5 {[%emt 0:05:21]} 22. f3 {[%emt 0:07:48]} dxe4 {[%emt 0:04:14]} 23. fxe4 {[%emt 0:02:35]} Bc8 {[%emt 0:07:42]} 24. Nb4 {[%emt 0:00:50]} Rxa5 {[%emt 0:01:01]} 25. Rxa5 {[%emt 0:01:11]} Qxa5 {[%emt 0:00:08]} 26. Nd5 {[%emt 0:00:31]} Bc5+ {[%emt 0:02:49]} 27. Kh1 {[%emt 0:00:07]} Qd8 {[%emt 0:02:17]} 28. b4 {[%emt 0:00:45]} Bd6 {[%emt 0:00:48]} 29. c4 {[%emt 0:01:20]} Qh4 {[%emt 0:03:55]} 30. c5 {[%emt 0:03:46]} Bb8 {[%emt 0:01:46]} 31. Qe3 {[%emt 0:02:24]} f5 {[%emt 0:03:13]} 32. g3 {[%emt 0:10:03]} Qd8 {[%emt 0:02:13]} 33. Bc4 {[%emt 0:03:40]} Kh8 {[%emt 0:00:45]} 34. Qf2 {[%emt 0:02:14]} f4 {[%emt 0:04:16]} 35. gxf4 {[%emt 0:02:55]} exf4 {[%emt 0:00:10]} 36. Be2 {[%emt 0:04:31]} Bh3 {[%emt 0:02:11]} 37. Rg1 {[%emt 0:02:29]} Qe8 {[%emt 0:02:01]} 38. Bf3 {[%emt 0:00:23]} Qe5 {[%emt 0:01:10]} 39. Qh4 {[%emt 0:01:02]} Be6 {[%emt 0:01:58]} 40. Ne7 {[%emt 0:00:00]} Bf7 {[%emt 0:00:00]} 41. Nf5 {[%emt 0:07:17]} Qc3 {[%emt 0:02:24]} 42. Qg4 {[%emt 0:06:48]} Be5 {[%emt 0:02:12]} 43. Nd6 {[%emt 0:05:15]} Be6 {[%emt 0:01:03]} 44. Qh5 {[%emt 0:12:08]} Bd4 {[%emt 0:01:39]} 45. Nb5 {[%emt 0:00:51]} Qxb4 {[%emt 0:05:28]} 46. Nxd4 {[%emt 0:00:14]} Qxd4 {[%emt 0:00:09]} 47. Qg5 {[%emt 0:09:08]} Qc3 {[%emt 0:02:55]} 48. Qg2 {[%emt 0:05:54]} 1/2-1/2

[Event "EYTCC Girls U18 2022"]
[Site "Thessaloniki"]
[Date "2022.07.14"]
[Round "3.7"]
[White "Rozmanec, Pia"]
[Black "Wikar, Martyna"]
[Result "0-1"]
[ECO "B90"]
[WhiteElo "1642"]
[BlackElo "2208"]
[Annotator "ChessBase"]
[PlyCount "56"]
[EventDate "2022.07.12"]
[EventType "team-tourn"]
[EventCountry "GRE"]
[SourceTitle "playchess.com"]
[Source "ChessBase"]
[SourceQuality "1"]
[WhiteTeam "Slovenia"]
[BlackTeam "Poland"]
[WhiteTeamCountry "SLO"]
[BlackTeamCountry "POL"]
[TimeControl "40/5400+30:1800+30"]

1. e4 {[%emt 0:00:01]} c5 {[%emt 0:00:14]} 2. Nf3 {[%emt 0:00:05]} d6 {[%emt 0:00:28]} 3. d4 {[%emt 0:00:14]} cxd4 {[%emt 0:00:08]} 4. Nxd4 {[%emt 0:00:06]} Nf6 {[%emt 0:00:17]} 5. Nc3 {[%emt 0:00:24]} a6 {[%emt 0:00:25]} 6. f3 {[%emt 0:00:58]} e5 {[%emt 0:00:25]} 7. Nb3 {[%emt 0:00:04]} Be7 {[%emt 0:00:32]} 8. Be3 {[%emt 0:00:17]} Be6 {[%emt 0:00:31]} 9. Qd2 {[%emt 0:00:39]} O-O {[%emt 0:00:37]} 10. g4 {[%emt 0:01:54]} d5 {[%emt 0:04:50]} 11. exd5 {[%emt 0:15:20]} Nxd5 {[%emt 0:01:07]} 12. Nxd5 {[%emt 0:05:23]} Bxd5 {[%emt 0:02:22]} 13. Bg2 {[%emt 0:01:04]} Bh4+ {[%emt 0:02:06]} 14. Bf2 {[%emt 0:00:39]} Bxb3 {[%emt 0:04:00]} 15. Qxd8 {[%emt 0:01:28]} Bxf2+ {[%emt 0:00:11]} 16. Kxf2 {[%emt 0:00:08]} Rxd8 {[%emt 0:00:06]} 17. Rhd1 {[%emt 0:05:57]} Nc6 {[%emt 0:00:57]} 18. cxb3 {[%emt 0:00:59]} Rac8 {[%emt 0:05:37]} 19. a3 {[%emt 0:27:24]} Nd4 {[%emt 0:01:30]} 20. b4 {[%emt 0:00:31]} Rc2+ {[%emt 0:01:44]} 21. Kf1 {[%emt 0:00:38]} b5 {[%emt 0:02:15]} 22. Re1 {[%emt 0:07:02]} f6 {[%emt 0:01:25]} 23. Rad1 {[%emt 0:01:31]} g5 {[%emt 0:04:46]} 24. Rc1 {[%emt 0:06:22]} Rdc8 {[%emt 0:02:00]} 25. Rxc2 {[%emt 0:02:26]} Rxc2 {[%emt 0:00:07]} 26. f4 {[%emt 0:03:33]} gxf4 {[%emt 0:00:33]} 27. h4 {[%emt 0:01:53]} f3 {[%emt 0:00:45]} 28. Bh1 {[%emt 0:00:20]} Rh2 {[%emt 0:00:17]} 0-1

[Event "EYTCC Girls U18 2022"]
[Site "Thessaloniki"]
[Date "2022.07.14"]
[Round "3.8"]
[White "Marcinczyk, Monika"]
[Black "Guid, Taja"]
[Result "1-0"]
[ECO "C10"]
[WhiteElo "1991"]
[BlackElo "1479"]
[Annotator "ChessBase"]
[PlyCount "103"]
[EventDate "2022.07.12"]
[EventType "team-tourn"]
[EventCountry "GRE"]
[SourceTitle "playchess.com"]
[Source "ChessBase"]
[SourceQuality "1"]
[WhiteTeam "Poland"]
[BlackTeam "Slovenia"]
[WhiteTeamCountry "POL"]
[BlackTeamCountry "SLO"]
[TimeControl "40/5400+30:1800+30"]

1. e4 {[%emt 0:00:03]} e6 {[%emt 0:00:05]} 2. d4 {[%emt 0:00:04]} d5 {[%emt 0:00:04]} 3. Nc3 {[%emt 0:00:06]} dxe4 {[%emt 0:00:06]} 4. Nxe4 {[%emt 0:00:04]} Nd7 {[%emt 0:00:07]} 5. Nf3 {[%emt 0:00:05]} Ngf6 {[%emt 0:00:09]} 6. Nxf6+ {[%emt 0:00:07]} Nxf6 {[%emt 0:00:07]} 7. c3 {[%emt 0:00:06]} c5 {[%emt 0:01:28]} 8. Be3 {[%emt 0:00:27]} Qc7 {[%emt 0:02:53]} 9. Bb5+ {[%emt 0:00:16]} Bd7 {[%emt 0:23:15]} 10. Bxd7+ {[%emt 0:00:11]} Nxd7 {[%emt 0:00:15]} 11. d5 {[%emt 0:00:12]} exd5 {[%emt 0:09:22]} 12. Qxd5 {[%emt 0:00:10]} Nf6 {[%emt 0:01:19]} 13. Qc4 {[%emt 0:00:08]} Bd6 {[%emt 0:08:11]} 14. Bg5 {[%emt 0:00:11]} Qe7+ {[%emt 0:06:15]} 15. Kf1 {[%emt 0:00:17]} O-O {[%emt 0:03:06]} 16. Re1 {[%emt 0:00:06]} Qd8 {[%emt 0:00:35]} 17. g3 {[%emt 0:00:43]} h6 {[%emt 0:03:48]} 18. Be3 {[%emt 0:09:46]} Qa5 {[%emt 0:07:18]} 19. Kg2 {[%emt 0:09:52]} Rad8 {[%emt 0:07:09]} 20. Qh4 {[%emt 0:10:50]} Nh7 {[%emt 0:12:01]} 21. Bxh6 {[%emt 0:04:02]} gxh6 {[%emt 0:00:40]} 22. Qxh6 {[%emt 0:00:16]} c4 {[%emt 0:01:54]} 23. Re4 {[%emt 0:01:56]} Qf5 {[%emt 0:00:36]} 24. Rhe1 {[%emt 0:02:34]} Qg6 {[%emt 0:01:37]} 25. Qh3 {[%emt 0:02:20]} f5 {[%emt 0:01:46]} 26. Rxc4 {[%emt 0:10:23]} Rfe8 {[%emt 0:02:11]} 27. Rd1 {[%emt 0:07:08]} Re4 {[%emt 0:01:40]} 28. Rxe4 {[%emt 0:09:07]} fxe4 {[%emt 0:00:02]} 29. Nh4 {[%emt 0:00:20]} Qf6 {[%emt 0:01:33]} 30. Qg4+ {[%emt 0:00:17]} Ng5 {[%emt 0:03:36]} 31. Nf5 {[%emt 0:01:38]} Rf8 {[%emt 0:00:34]} 32. Rd5 {[%emt 0:03:45]} Be5 {[%emt 0:00:50]} 33. Rxe5 {[%emt 0:01:11]} Qxe5 {[%emt 0:00:10]} 34. Qxg5+ {[%emt 0:00:07]} Kf7 {[%emt 0:00:11]} 35. Nh6+ {[%emt 0:09:06]} Ke6 {[%emt 0:00:11]} 36. Qxe5+ {[%emt 0:00:58]} Kxe5 {[%emt 0:00:02]} 37. Ng4+ {[%emt 0:00:16]} Kd5 {[%emt 0:00:10]} 38. Ne3+ {[%emt 0:00:12]} Kc5 {[%emt 0:00:37]} 39. h4 {[%emt 0:01:07]} b5 {[%emt 0:00:30]} 40. h5 {[%emt 0:00:00]} b4 {[%emt 0:00:00]} 41. cxb4+ {[%emt 0:00:48]} Kxb4 {[%emt 0:00:38]} 42. h6 {[%emt 0:00:09]} Rh8 {[%emt 0:00:46]} 43. Nf5 {[%emt 0:00:24]} Kc4 {[%emt 0:00:27]} 44. g4 {[%emt 0:00:15]} Kd5 {[%emt 0:00:14]} 45. g5 {[%emt 0:09:36]} Ke5 {[%emt 0:03:18]} 46. Nh4 {[%emt 0:00:07]} Rg8 {[%emt 0:00:18]} 47. g6 {[%emt 0:02:21]} Kf6 {[%emt 0:00:25]} 48. Kg3 {[%emt 0:02:14]} Rh8 {[%emt 0:00:15]} 49. g7 {[%emt 0:00:21]} Re8 {[%emt 0:00:58]} 50. Kf4 {[%emt 0:00:27]} Kf7 {[%emt 0:00:24]} 51. Nf5 {[%emt 0:00:20]} Kg6 {[%emt 0:00:14]} 52. Ne7+ {[%emt 0:00:16]} 1-0

[Event "EYTCC Girls U18 2022"]
[Site "Thessaloniki"]
[Date "2022.07.14"]
[Round "3.9"]
[White "Kara, Gulce Nehir"]
[Black "Dereka, Konstantina"]
[Result "1-0"]
[ECO "D02"]
[WhiteElo "1907"]
[BlackElo "1451"]
[Annotator "ChessBase"]
[PlyCount "101"]
[EventDate "2022.07.12"]
[EventType "team-tourn"]
[EventCountry "GRE"]
[SourceTitle "playchess.com"]
[Source "ChessBase"]
[SourceQuality "1"]
[WhiteTeam "Turkey"]
[BlackTeam "Greece"]
[WhiteTeamCountry "TUR"]
[BlackTeamCountry "GRE"]
[TimeControl "40/5400+30:1800+30"]

1. d4 {[%emt 0:00:03]} d5 {[%emt 0:00:12]} 2. Nf3 {[%emt 0:00:06]} Nf6 {[%emt 0:00:06]} 3. Bf4 {[%emt 0:00:07]} e6 {[%emt 0:00:29]} 4. e3 {[%emt 0:00:09]} c5 {[%emt 0:02:32]} 5. c3 {[%emt 0:01:51]} Nc6 {[%emt 0:01:59]} 6. Nbd2 {[%emt 0:00:52]} Bd6 {[%emt 0:00:52]} 7. Bg3 {[%emt 0:01:48]} O-O {[%emt 0:00:35]} 8. Bd3 {[%emt 0:00:28]} Re8 {[%emt 0:02:33]} 9. Ne5 {[%emt 0:08:34]} Qc7 {[%emt 0:04:49]} 10. f4 {[%emt 0:03:27]} c4 {[%emt 0:06:18]} 11. Bc2 {[%emt 0:05:45]} b5 {[%emt 0:00:59]} 12. Qf3 {[%emt 0:14:28]} a5 {[%emt 0:05:03]} 13. a4 {[%emt 0:13:15]} Ba6 {[%emt 0:05:57]} 14. e4 {[%emt 0:02:52]} Ne7 {[%emt 0:14:10]} 15. Bh4 {[%emt 0:01:35]} Nxe4 {[%emt 0:05:18]} 16. Nxe4 {[%emt 0:00:45]} dxe4 {[%emt 0:00:07]} 17. Bxe4 {[%emt 0:00:34]} Rab8 {[%emt 0:01:27]} 18. axb5 {[%emt 0:13:31]} Bxb5 {[%emt 0:06:11]} 19. Bxe7 {[%emt 0:12:53]} Qxe7 {[%emt 0:05:35]} 20. Rxa5 {[%emt 0:01:58]} f6 {[%emt 0:05:16]} 21. Qh5 {[%emt 0:06:55]} f5 {[%emt 0:11:35]} 22. Bc6 {[%emt 0:01:42]} Bxc6 {[%emt 0:01:56]} 23. Nxc6 {[%emt 0:00:05]} Qc7 {[%emt 0:00:07]} 24. Ra7 {[%emt 0:00:11]} g6 {[%emt 0:00:57]} 25. Rxc7 {[%emt 0:05:19]} gxh5 {[%emt 0:00:10]} 26. Rd7 {[%emt 0:00:23]} Rxb2 {[%emt 0:01:59]} 27. O-O {[%emt 0:00:12]} Bf8 {[%emt 0:01:28]} 28. h4 {[%emt 0:01:36]} Rd2 {[%emt 0:04:15]} 29. Rf3 {[%emt 0:02:34]} Rd3 {[%emt 0:00:22]} 30. Kf2 {[%emt 0:00:57]} Ra8 {[%emt 0:03:05]} 31. Rxd3 {[%emt 0:00:27]} cxd3 {[%emt 0:00:05]} 32. Ke3 {[%emt 0:00:27]} Ra2 {[%emt 0:00:13]} 33. Kxd3 {[%emt 0:00:06]} Rxg2 {[%emt 0:00:05]} 34. Nd8 {[%emt 0:00:33]} Rg6 {[%emt 0:01:44]} 35. c4 {[%emt 0:00:25]} Bh6 {[%emt 0:00:47]} 36. c5 {[%emt 0:00:52]} Bxf4 {[%emt 0:00:31]} 37. Re7 {[%emt 0:00:16]} Bg3 {[%emt 0:02:01]} 38. c6 {[%emt 0:00:52]} e5 {[%emt 0:02:05]} 39. dxe5 {[%emt 0:00:08]} Bxe5 {[%emt 0:00:06]} 40. Rxe5 {[%emt 0:00:00]} Rd6+ {[%emt 0:00:00]} 41. Kc4 {[%emt 0:00:20]} Rxd8 {[%emt 0:00:07]} 42. Rxf5 {[%emt 0:00:05]} Kg7 {[%emt 0:01:48]} 43. Rxh5 {[%emt 0:00:32]} Kg6 {[%emt 0:00:20]} 44. Rd5 {[%emt 0:00:04]} Rc8 {[%emt 0:00:06]} 45. Kc5 {[%emt 0:00:14]} Kf6 {[%emt 0:00:55]} 46. Rd7 {[%emt 0:00:11]} h5 {[%emt 0:00:27]} 47. Kb6 {[%emt 0:01:01]} Kf5 {[%emt 0:00:15]} 48. Kb7 {[%emt 0:00:14]} Rg8 {[%emt 0:00:53]} 49. c7 {[%emt 0:00:07]} Kg4 {[%emt 0:00:09]} 50. Rd4+ {[%emt 0:00:12]} Kg3 {[%emt 0:00:10]} 51. c8=Q {[%emt 0:00:07]} 1-0

[Event "EYTCC Girls U18 2022"]
[Site "Thessaloniki"]
[Date "2022.07.14"]
[Round "3.10"]
[White "Kapia, Aggeliki"]
[Black "Kayis, Gulcan Sena"]
[Result "1/2-1/2"]
[ECO "D20"]
[WhiteElo "1230"]
[BlackElo "1682"]
[Annotator "NA"]
[PlyCount "82"]
[EventDate "2022.07.12"]
[EventType "team-tourn"]
[EventCountry "GRE"]
[SourceTitle "playchess.com"]
[Source "ChessBase"]
[SourceQuality "1"]
[WhiteTeam "Greece"]
[BlackTeam "Turkey"]
[WhiteTeamCountry "GRE"]
[BlackTeamCountry "TUR"]
[TimeControl "40/5400+30:1800+30"]

1. d4 {[%emt 0:00:04]} d5 {[%emt 0:00:12]} 2. c4 {[%emt 0:00:11]} dxc4 {[%emt 0:00:12]} 3. Na3 {[%emt 0:06:08]} Nf6 {[%emt 0:06:34]} 4. e3 {[%emt 0:08:15]} e6 {[%emt 0:01:15]} 5. Bxc4 {[%emt 0:03:54]} a6 {[%emt 0:03:39]} 6. Be2 {[%emt 0:15:59]} Be7 {[%emt 0:06:18]} 7. Nf3 {[%emt 0:01:17]} O-O {[%emt 0:01:48]} 8. O-O {[%emt 0:00:54]} Nbd7 {[%emt 0:03:29]} 9. Nc4 {[%emt 0:05:02]} b6 {[%emt 0:07:23]} 10. Nfe5 {[%emt 0:03:01]} Bb7 {[%emt 0:03:58]} 11. Bf3 Nxe5 {[%emt 0:06:47]} 12. Nxe5 {[%emt 0:31:56]} Bd5 {[%emt 0:02:11]} 13. Nc6 {[%emt 0:05:08]} Qe8 {[%emt 0:04:03]} 14. Nxe7+ {[%emt 0:02:21]} Qxe7 {[%emt 0:00:10]} 15. Bd2 Rfd8 {[%emt 0:03:46]} 16. Qe2 {[%emt 0:04:55]} Ne4 {[%emt 0:04:01]} 17. Bxe4 {[%emt 0:01:06]} Bxe4 {[%emt 0:00:07]} 18. f3 {[%emt 0:00:38]} Bb7 {[%emt 0:00:31]} 19. Rac1 {[%emt 0:00:26]} Rac8 {[%emt 0:03:40]} 20. a3 {[%emt 0:03:40]} Qf6 {[%emt 0:03:51]} 21. Rc2 {[%emt 0:01:12]} h5 {[%emt 0:05:48]} 22. Rfc1 {[%emt 0:00:54]} c5 {[%emt 0:00:31]} 23. dxc5 {[%emt 0:01:35]} Rxc5 {[%emt 0:00:06]} 24. Rxc5 {[%emt 0:00:25]} bxc5 {[%emt 0:00:07]} 25. Bc3 {[%emt 0:00:21]} Qg5 {[%emt 0:00:17]} 26. Kf2 {[%emt 0:02:06]} Qh4+ {[%emt 0:01:53]} 27. Kg1 {[%emt 0:00:15]} Qa4 {[%emt 0:01:31]} 28. Qc2 {[%emt 0:00:56]} Qb5 {[%emt 0:03:56]} 29. Rd1 {[%emt 0:01:08]} Rd5 {[%emt 0:03:28]} 30. e4 {[%emt 0:00:40]} Rd7 {[%emt 0:02:47]} 31. Rxd7 {[%emt 0:00:38]} Qxd7 {[%emt 0:00:01]} 32. Kf2 Qc7 {[%emt 0:02:20]} 33. Kg1 {[%emt 0:00:54]} Qd6 {[%emt 0:03:30]} 34. Qd2 {[%emt 0:00:21]} Qxd2 {[%emt 0:02:37]} 35. Bxd2 {[%emt 0:00:04]} Kf8 {[%emt 0:00:21]} 36. Kf2 {[%emt 0:00:07]} Ke7 {[%emt 0:00:06]} 37. e5 {[%emt 0:00:48]} f5 {[%emt 0:03:14]} 38. Ke2 {[%emt 0:00:45]} Bd5 {[%emt 0:00:25]} 39. Kd3 {[%emt 0:00:57]} Kd7 {[%emt 0:00:33]} 40. Bg5 {[%emt 0:00:00]} g6 {[%emt 0:00:00]} 41. Bd2 {[%emt 0:07:39]} Kc6 {[%emt 0:03:38]} 1/2-1/2

[Event "EYTCC Girls U18 2022"]
[Site "Thessaloniki"]
[Date "2022.07.14"]
[Round "3.11"]
[White "Alexandri, Dimitra"]
[Black "Sheikh, Anum"]
[Result "1-0"]
[ECO "E32"]
[WhiteElo "1683"]
[BlackElo "1799"]
[Annotator "NA"]
[PlyCount "45"]
[EventDate "2022.07.12"]
[EventType "team-tourn"]
[EventCountry "GRE"]
[SourceTitle "playchess.com"]
[Source "ChessBase"]
[SourceQuality "1"]
[WhiteTeam "Greece"]
[BlackTeam "England"]
[WhiteTeamCountry "GRE"]
[BlackTeamCountry "ENG"]
[TimeControl "40/5400+30:1800+30"]

1. d4 {[%emt 0:00:02]} Nf6 {[%emt 0:00:04]} 2. c4 {[%emt 0:00:10]} e6 {[%emt 0:00:04]} 3. Nc3 {[%emt 0:00:09]} Bb4 {[%emt 0:00:08]} 4. Qc2 {[%emt 0:00:48]} O-O {[%emt 0:02:03]} 5. e4 {[%emt 0:00:08]} d5 {[%emt 0:08:04]} 6. e5 {[%emt 0:00:17]} Ne4 {[%emt 0:02:29]} 7. Bd3 {[%emt 0:01:12]} c5 {[%emt 0:03:04]} 8. Nf3 {[%emt 0:12:01]} Nc6 {[%emt 0:32:34]} 9. O-O {[%emt 0:00:49]} cxd4 {[%emt 0:07:23]} 10. Nxe4 {[%emt 0:00:15]} dxe4 11. Bxe4 {[%emt 0:00:16]} h6 {[%emt 0:00:30]} 12. Bxc6 {[%emt 0:17:28]} bxc6 {[%emt 0:04:50]} 13. Qe4 {[%emt 0:00:30]} Bb7 {[%emt 0:02:47]} 14. Qg4 {[%emt 0:01:20]} Kh8 {[%emt 0:08:07]} 15. Nxd4 {[%emt 0:01:57]} c5 {[%emt 0:00:41]} 16. Nb5 {[%emt 0:02:14]} a6 {[%emt 0:07:18]} 17. Nd6 {[%emt 0:00:49]} Bc6 {[%emt 0:00:05]} 18. Rd1 {[%emt 0:07:30]} Qc7 {[%emt 0:02:48]} 19. Bf4 {[%emt 0:02:22]} Ba5 {[%emt 0:05:14]} 20. Rd3 {[%emt 0:04:20]} Kh7 {[%emt 0:00:50]} 21. Rh3 {[%emt 0:01:16]} Rh8 {[%emt 0:00:51]} 22. Bxh6 {[%emt 0:00:56]} gxh6 {[%emt 0:00:19]} 23. Qg5 {[%emt 0:00:29]} 1-0

[Event "EYTCC Girls U18 2022"]
[Site "Thessaloniki"]
[Date "2022.07.14"]
[Round "3.12"]
[White "Pert, Nina"]
[Black "Alexandri, Vasiliki"]
[Result "1-0"]
[ECO "C56"]
[WhiteElo "1703"]
[BlackElo "1527"]
[Annotator "NA"]
[PlyCount "101"]
[EventDate "2022.07.12"]
[EventType "team-tourn"]
[EventCountry "GRE"]
[SourceTitle "playchess.com"]
[Source "ChessBase"]
[SourceQuality "1"]
[WhiteTeam "England"]
[BlackTeam "Greece"]
[WhiteTeamCountry "ENG"]
[BlackTeamCountry "GRE"]
[TimeControl "40/5400+30:1800+30"]

1. e4 {[%emt 0:00:03]} e5 {[%emt 0:00:05]} 2. Nf3 {[%emt 0:00:04]} Nc6 {[%emt 0:00:14]} 3. Bc4 {[%emt 0:00:21]} Nf6 {[%emt 0:00:08]} 4. d4 {[%emt 0:00:24]} exd4 {[%emt 0:00:08]} 5. O-O {[%emt 0:00:06]} Nxe4 {[%emt 0:00:08]} 6. Re1 {[%emt 0:00:09]} d5 {[%emt 0:00:06]} 7. Bxd5 {[%emt 0:00:12]} Qxd5 {[%emt 0:00:08]} 8. Nc3 {[%emt 0:00:07]} Qa5 {[%emt 0:00:10]} 9. Nxe4 {[%emt 0:00:24]} Be6 {[%emt 0:00:20]} 10. Bd2 {[%emt 0:01:15]} Qb5 {[%emt 0:00:21]} 11. a4 {[%emt 0:03:00]} Qd5 {[%emt 0:05:35]} 12. Bg5 {[%emt 0:03:01]} h6 {[%emt 0:01:36]} 13. Bf6 {[%emt 0:01:19]} Be7 {[%emt 0:22:32]} 14. Bxg7 {[%emt 0:03:25]} Rg8 {[%emt 0:00:09]} 15. Nf6+ {[%emt 0:02:41]} Bxf6 {[%emt 0:00:07]} 16. Bxf6 {[%emt 0:00:04]} Rg6 {[%emt 0:04:36]} 17. Bh4 {[%emt 0:04:13]} Kd7 {[%emt 0:01:55]} 18. Qe2 {[%emt 0:09:49]} Rag8 {[%emt 0:04:20]} 19. Bg3 {[%emt 0:00:21]} f5 {[%emt 0:12:14]} 20. Nh4 {[%emt 0:08:41]} Rg4 {[%emt 0:07:27]} 21. f3 {[%emt 0:03:03]} R4g7 {[%emt 0:07:37]} 22. Rad1 {[%emt 0:04:13]} Re7 {[%emt 0:04:03]} 23. Qb5 {[%emt 0:09:16]} Kc8 {[%emt 0:09:24]} 24. Qxd5 {[%emt 0:02:30]} Bxd5 {[%emt 0:00:09]} 25. Nxf5 {[%emt 0:01:07]} Rxe1+ {[%emt 0:02:29]} 26. Rxe1 {[%emt 0:00:14]} Rg6 {[%emt 0:02:09]} 27. Rd1 {[%emt 0:00:45]} h5 {[%emt 0:03:59]} 28. Nxd4 {[%emt 0:00:21]} b6 {[%emt 0:02:52]} 29. Nb5 {[%emt 0:00:51]} Bc4 {[%emt 0:00:41]} 30. Nd4 {[%emt 0:03:17]} Nxd4 {[%emt 0:02:41]} 31. Rxd4 {[%emt 0:00:00]} Be6 {[%emt 0:00:15]} 32. Kf2 {[%emt 0:00:18]} c5 {[%emt 0:00:47]} 33. Rd6 {[%emt 0:01:03]} Bf5 {[%emt 0:00:13]} 34. c3 {[%emt 0:01:31]} Rxd6 {[%emt 0:01:07]} 35. Bxd6 {[%emt 0:00:09]} Kd7 {[%emt 0:01:14]} 36. Bf8 {[%emt 0:00:48]} a5 {[%emt 0:01:52]} 37. Kg3 {[%emt 0:00:33]} Ke6 {[%emt 0:00:34]} 38. Kh4 {[%emt 0:00:36]} Bg6 {[%emt 0:00:10]} 39. Kg5 {[%emt 0:00:05]} Be8 {[%emt 0:00:07]} 40. h4 {[%emt 0:00:00]} Ke5 {[%emt 0:00:00]} 41. Be7 {[%emt 0:02:31]} Kd5 {[%emt 0:03:47]} 42. Bd8 {[%emt 0:00:44]} Kc6 {[%emt 0:00:30]} 43. Kf6 {[%emt 0:00:16]} Kb7 {[%emt 0:00:19]} 44. g4 {[%emt 0:00:19]} Bxa4 {[%emt 0:02:05]} 45. g5 {[%emt 0:00:38]} Bb3 {[%emt 0:00:15]} 46. g6 {[%emt 0:00:22]} a4 {[%emt 0:00:17]} 47. f4 {[%emt 0:00:18]} b5 {[%emt 0:00:23]} 48. f5 {[%emt 0:00:06]} Kc6 {[%emt 0:00:45]} 49. Ba5 {[%emt 0:01:54]} Bc2 {[%emt 0:04:21]} 50. g7 {[%emt 0:00:12]} Bb3 {[%emt 0:00:05]} 51. Ke7 {[%emt 0:00:05]} 1-0

[Event "EYTCC Girls U18 2022"]
[Site "Thessaloniki"]
[Date "2022.07.15"]
[Round "4.1"]
[White "Ruzic, Pia Marie"]
[Black "Lehaci, Miruna-Daria"]
[Result "1/2-1/2"]
[ECO "A28"]
[WhiteElo "2025"]
[BlackElo "2193"]
[Annotator "ChessBase"]
[PlyCount "93"]
[EventDate "2022.07.12"]
[EventType "team-tourn"]
[EventCountry "GRE"]
[SourceTitle "playchess.com"]
[Source "ChessBase"]
[SourceQuality "1"]
[WhiteTeam "Slovenia"]
[BlackTeam "Romania"]
[WhiteTeamCountry "SLO"]
[BlackTeamCountry "ROU"]
[TimeControl "40/5400+30:1800+30"]

1. c4 {[%emt 0:00:03]} e5 {[%emt 0:00:09]} 2. Nc3 {[%emt 0:00:14]} Nf6 {[%emt 0:00:05]} 3. Nf3 {[%emt 0:00:17]} Nc6 {[%emt 0:00:06]} 4. e3 {[%emt 0:00:41]} Bb4 {[%emt 0:00:14]} 5. Qc2 {[%emt 0:01:04]} O-O {[%emt 0:00:14]} 6. Be2 {[%emt 0:01:48]} Re8 {[%emt 0:04:50]} 7. O-O {[%emt 0:06:24]} e4 {[%emt 0:03:37]} 8. Nd4 {[%emt 0:01:19]} Nxd4 {[%emt 0:06:42]} 9. exd4 {[%emt 0:00:06]} d5 {[%emt 0:00:41]} 10. a3 {[%emt 0:06:09]} Bd6 {[%emt 0:05:09]} 11. c5 {[%emt 0:03:44]} Bf4 {[%emt 0:02:58]} 12. d3 {[%emt 0:05:51]} e3 {[%emt 0:04:14]} 13. fxe3 {[%emt 0:01:20]} Bxe3+ {[%emt 0:03:27]} 14. Bxe3 {[%emt 0:00:07]} Rxe3 {[%emt 0:00:04]} 15. Qd2 {[%emt 0:03:24]} Re8 {[%emt 0:02:02]} 16. Rae1 {[%emt 0:06:31]} c6 {[%emt 0:02:15]} 17. Bd1 {[%emt 0:13:12]} Rxe1 {[%emt 0:04:43]} 18. Qxe1 {[%emt 0:01:22]} Bg4 {[%emt 0:05:55]} 19. Bxg4 {[%emt 0:06:44]} Nxg4 {[%emt 0:00:06]} 20. h3 {[%emt 0:01:04]} Nh6 {[%emt 0:05:51]} 21. b4 {[%emt 0:04:45]} Qd7 {[%emt 0:02:37]} 22. b5 {[%emt 0:02:34]} Re8 {[%emt 0:04:24]} 23. bxc6 {[%emt 0:01:11]} bxc6 {[%emt 0:00:20]} 24. Qg3 {[%emt 0:00:37]} Nf5 {[%emt 0:03:05]} 25. Qf4 {[%emt 0:03:02]} g6 {[%emt 0:01:35]} 26. Rb1 {[%emt 0:04:40]} Qe7 {[%emt 0:04:37]} 27. Rb8 {[%emt 0:13:39]} Rxb8 {[%emt 0:02:45]} 28. Qxb8+ {[%emt 0:00:05]} Kg7 {[%emt 0:00:04]} 29. Qe5+ {[%emt 0:02:44]} Qxe5 {[%emt 0:05:42]} 30. dxe5 {[%emt 0:00:01]} f6 {[%emt 0:00:06]} 31. exf6+ Kxf6 {[%emt 0:00:03]} 32. Kf2 {[%emt 0:05:58]} Ke5 {[%emt 0:00:09]} 33. g4 {[%emt 0:01:44]} Nd4 {[%emt 0:01:02]} 34. Na2 {[%emt 0:00:45]} a5 {[%emt 0:06:08]} 35. Nc1 {[%emt 0:01:02]} Ne6 {[%emt 0:02:45]} 36. Nb3 {[%emt 0:00:35]} a4 {[%emt 0:00:12]} 37. Na5 {[%emt 0:00:10]} Nd8 {[%emt 0:01:04]} 38. Ke3 {[%emt 0:01:51]} d4+ {[%emt 0:01:29]} 39. Kf3 {[%emt 0:00:20]} Kd5 {[%emt 0:00:59]} 40. Nc4 {[%emt 0:00:00]} Kxc5 {[%emt 0:00:00]} 41. Nb2 {[%emt 0:00:28]} Kb5 {[%emt 0:04:29]} 42. Ke4 {[%emt 0:00:23]} c5 {[%emt 0:02:27]} 43. Kd5 {[%emt 0:02:30]} Nc6 {[%emt 0:02:34]} 44. Nc4 {[%emt 0:01:19]} Ne7+ {[%emt 0:03:19]} 45. Kd6 {[%emt 0:02:03]} Nc6 {[%emt 0:05:33]} 46. Kd5 {[%emt 0:00:15]} Ne7+ {[%emt 0:04:26]} 47. Ke4 1/2-1/2